[Event "European Online Club-ch-E 2021"]
[Site "Online"]
[Date "2021.03.27"]
[Round "6.13"]
[White "Oparin, Grigoriy"]
[Black "Westerberg, Jonathan"]
[Result "1-0"]
[ECO "D02"]
[WhiteElo "2652"]
[BlackElo "2534"]
[Annotator "ChessBase"]
[PlyCount "123"]
[EventDate "2021.03.27"]
[EventType "team-tourn"]
[EventCountry "NET"]
[SourceTitle "playchess.com"]
[Source "ChessBase"]
[SourceQuality "1"]
[TimeControl "900+5"]

1. Nf3 {[%emt 0:00:00]} d5 {[%emt 0:00:05]} 2. g3 {[%emt 0:00:02]} Nd7 {[%emt 0:00:04]} 3. d4 {[%emt 0:00:02]} Nb6 {[%emt 0:00:03]} 4. Nc3 {[%emt 0:00:05]} Nf6 {[%emt 0:00:04]} 5. Bg2 {[%emt 0:00:03]} h6 {[%emt 0:00:15]} 6. Qd3 {[%emt 0:00:38]} c6 {[%emt 0:00:54]} 7. O-O {[%emt 0:00:05]} g6 {[%emt 0:00:04]} 8. e4 {[%emt 0:00:11]} dxe4 {[%emt 0:00:16]} 9. Nxe4 {[%emt 0:00:00]} Bg7 {[%emt 0:00:01]} 10. Nxf6+ {[%emt 0:00:13]} Bxf6 {[%emt 0:00:03]} 11. Re1 {[%emt 0:00:01]} Bf5 {[%emt 0:00:25]} 12. Qe2 {[%emt 0:00:23]} Bg4 {[%emt 0:00:52]} 13. h3 {[%emt 0:00:08]} Bxf3 {[%emt 0:00:08]} 14. Qxf3 {[%emt 0:00:00]} Bg7 {[%emt 0:00:22]} 15. c3 {[%emt 0:00:12]} O-O {[%emt 0:00:05]} 16. h4 {[%emt 0:00:01]} e6 {[%emt 0:00:21]} 17. Re2 {[%emt 0:00:59]} Nd5 {[%emt 0:00:05]} 18. Bd2 {[%emt 0:00:05]} a6 {[%emt 0:00:11]} 19. Rd1 {[%emt 0:00:17]} a5 {[%emt 0:00:03]} 20. b3 {[%emt 0:01:19]} a4 {[%emt 0:00:20]} 21. c4 {[%emt 0:00:02]} Ne7 {[%emt 0:00:15]} 22. Bb4 {[%emt 0:00:36]} Re8 {[%emt 0:00:03]} 23. h5 {[%emt 0:00:07]} g5 {[%emt 0:00:06]} 24. Red2 {[%emt 0:00:08]} axb3 {[%emt 0:00:08]} 25. axb3 {[%emt 0:00:03]} Qc7 {[%emt 0:00:46]} 26. Bh3 {[%emt 0:01:10]} Rad8 {[%emt 0:00:27]} 27. Rd3 {[%emt 0:00:02]} b6 {[%emt 0:00:19]} 28. Ba3 {[%emt 0:00:53]} Ra8 {[%emt 0:01:54]} 29. Bb4 {[%emt 0:01:45]} Rad8 {[%emt 0:00:09]} 30. Qe3 {[%emt 0:00:09]} Bf6 {[%emt 0:00:30]} 31. Ba3 {[%emt 0:01:36]} Kg7 {[%emt 0:00:31]} 32. Qf3 {[%emt 0:02:04]} Rd7 {[%emt 0:00:28]} 33. Bg2 {[%emt 0:00:55]} Rc8 {[%emt 0:00:33]} 34. Bb2 {[%emt 0:00:28]} Rcd8 {[%emt 0:00:21]} 35. Qe2 {[%emt 0:00:18]} Ng8 {[%emt 0:01:41]} 36. b4 {[%emt 0:00:21]} Qd6 {[%emt 0:01:35]} 37. Bc3 {[%emt 0:00:40]} Ne7 {[%emt 0:00:38]} 38. Qb2 {[%emt 0:00:17]} Kg8 {[%emt 0:00:10]} 39. c5 {[%emt 0:00:43]} Qc7 {[%emt 0:00:30]} 40. d5 {[%emt 0:00:02]} Bxc3 {[%emt 0:00:30]} 41. d6 {[%emt 0:00:02]} Bxb2 {[%emt 0:01:03]} 42. dxc7 {[%emt 0:00:02]} Nd5 {[%emt 0:00:04]} 43. cxd8=Q+ {[%emt 0:00:01]} Rxd8 {[%emt 0:00:02]} 44. cxb6 {[%emt 0:01:07]} Rb8 {[%emt 0:00:08]} 45. b5 {[%emt 0:00:01]} Rxb6 {[%emt 0:00:16]} 46. bxc6 {[%emt 0:00:03]} Rxc6 {[%emt 0:00:02]} 47. Bxd5 {[%emt 0:00:03]} exd5 {[%emt 0:00:03]} 48. Rxd5 {[%emt 0:00:00]} Kg7 {[%emt 0:00:10]} 49. Rd7 {[%emt 0:00:07]} Rf6 {[%emt 0:00:20]} 50. R1d5 {[%emt 0:00:03]} Ba3 {[%emt 0:00:12]} 51. Kg2 {[%emt 0:00:01]} Bb4 {[%emt 0:00:07]} 52. Rd3 {[%emt 0:00:16]} Re6 {[%emt 0:00:19]} 53. Rf3 {[%emt 0:00:07]} Be7 {[%emt 0:00:02]} 54. Re3 {[%emt 0:00:03]} Rxe3 {[%emt 0:00:02]} 55. fxe3 {[%emt 0:00:00]} Bc5 {[%emt 0:00:04]} 56. Kf3 {[%emt 0:00:03]} Kf6 {[%emt 0:00:01]} 57. g4 {[%emt 0:00:02]} Be7 {[%emt 0:00:15]} 58. Ke4 {[%emt 0:00:03]} Bc5 {[%emt 0:00:06]} 59. Rc7 {[%emt 0:00:03]} Ba3 {[%emt 0:00:06]} 60. Rc6+ {[%emt 0:00:02]} Kg7 {[%emt 0:00:02]} 61. Kd5 {[%emt 0:00:04]} Bc1 {[%emt 0:00:02]} 62. Rxc1 {[%emt 0:00:03]} 1-0

[Event "European Online Club-ch-E 2021"]
[Site "Online"]
[Date "2021.03.27"]
[Round "6.14"]
[White "Arman, Deniz"]
[Black "Moussard, Jules"]
[Result "1/2-1/2"]
[ECO "B22"]
[WhiteElo "2336"]
[BlackElo "2635"]
[Annotator "ChessBase"]
[PlyCount "115"]
[EventDate "2021.03.27"]
[EventType "team-tourn"]
[EventCountry "NET"]
[SourceTitle "playchess.com"]
[Source "ChessBase"]
[SourceQuality "1"]
[TimeControl "900+5"]

1. e4 {[%emt 0:00:00]} c5 {[%emt 0:00:04]} 2. c3 {[%emt 0:00:03]} Nf6 {[%emt 0:00:02]} 3. e5 {[%emt 0:00:01]} Nd5 {[%emt 0:00:01]} 4. d4 {[%emt 0:00:02]} cxd4 {[%emt 0:00:01]} 5. Nf3 {[%emt 0:00:02]} Nc6 {[%emt 0:00:03]} 6. Bc4 {[%emt 0:00:02]} Nb6 {[%emt 0:00:07]} 7. Bb3 {[%emt 0:00:01]} d6 {[%emt 0:00:56]} 8. exd6 {[%emt 0:00:10]} e6 {[%emt 0:00:03]} 9. Nxd4 {[%emt 0:01:35]} Nxd4 {[%emt 0:00:15]} 10. Qxd4 {[%emt 0:00:02]} Qxd6 {[%emt 0:00:06]} 11. Be3 {[%emt 0:01:10]} Qxd4 {[%emt 0:00:29]} 12. Bxd4 {[%emt 0:00:05]} Bd7 {[%emt 0:00:01]} 13. O-O {[%emt 0:00:43]} Bc6 {[%emt 0:00:03]} 14. Nd2 {[%emt 0:01:33]} O-O-O {[%emt 0:00:18]} 15. Nc4 {[%emt 0:00:34]} Nxc4 {[%emt 0:00:09]} 16. Bxc4 {[%emt 0:00:02]} a6 {[%emt 0:00:05]} 17. Rfd1 {[%emt 0:00:46]} Be7 {[%emt 0:00:05]} 18. Bb6 {[%emt 0:00:27]} Rd6 {[%emt 0:00:21]} 19. Rxd6 {[%emt 0:00:09]} Bxd6 {[%emt 0:00:02]} 20. Rd1 {[%emt 0:00:03]} Bc7 {[%emt 0:00:01]} 21. Bxc7 {[%emt 0:00:21]} Kxc7 {[%emt 0:00:02]} 22. f4 {[%emt 0:00:07]} h6 {[%emt 0:00:31]} 23. h4 {[%emt 0:01:23]} g5 {[%emt 0:00:45]} 24. hxg5 {[%emt 0:00:04]} hxg5 {[%emt 0:00:01]} 25. f5 {[%emt 0:01:12]} b5 {[%emt 0:01:12]} 26. Bb3 {[%emt 0:00:06]} exf5 {[%emt 0:00:02]} 27. Bxf7 {[%emt 0:00:03]} f4 {[%emt 0:00:32]} 28. Bd5 {[%emt 0:02:34]} Rd8 {[%emt 0:00:25]} 29. Bf3 {[%emt 0:00:10]} Rxd1+ {[%emt 0:00:08]} 30. Bxd1 {[%emt 0:00:04]} Kd6 {[%emt 0:00:08]} 31. Bf3 {[%emt 0:00:15]} Bd7 {[%emt 0:00:23]} 32. g3 {[%emt 0:01:27]} Ke5 {[%emt 0:01:23]} 33. b4 {[%emt 0:00:56]} Be6 {[%emt 0:02:15]} 34. Bb7 {[%emt 0:00:44]} Bxa2 {[%emt 0:00:04]} 35. Bxa6 {[%emt 0:00:18]} Bc4 {[%emt 0:00:01]} 36. Kf2 {[%emt 0:00:24]} Ke4 {[%emt 0:00:02]} 37. Bb7+ {[%emt 0:00:21]} Bd5 {[%emt 0:00:00]} 38. Ba6 {[%emt 0:00:03]} Bc4 {[%emt 0:00:04]} 39. Bb7+ {[%emt 0:00:01]} Ke5 {[%emt 0:00:02]} 40. Bc6 {[%emt 0:00:03]} Kd6 {[%emt 0:00:32]} 41. Be8 {[%emt 0:00:02]} Ke6 {[%emt 0:00:21]} 42. gxf4 {[%emt 0:00:04]} gxf4 {[%emt 0:00:01]} 43. Bc6 {[%emt 0:00:01]} Ke5 {[%emt 0:00:01]} 44. Be8 {[%emt 0:00:07]} Bd3 {[%emt 0:00:02]} 45. Bd7 {[%emt 0:00:06]} Kd6 {[%emt 0:00:07]} 46. Be8 {[%emt 0:00:04]} Bc4 {[%emt 0:00:03]} 47. Kf3 {[%emt 0:00:08]} Ke5 {[%emt 0:00:01]} 48. Bd7 {[%emt 0:00:15]} Bd3 {[%emt 0:00:05]} 49. Be8 {[%emt 0:00:02]} Kf5 {[%emt 0:00:02]} 50. Bd7+ {[%emt 0:00:02]} Kg5 {[%emt 0:00:00]} 51. Be8 {[%emt 0:00:04]} Bc4 {[%emt 0:00:02]} 52. Bc6 {[%emt 0:00:02]} Kf5 {[%emt 0:00:02]} 53. Bd7+ {[%emt 0:00:01]} Ke5 {[%emt 0:00:01]} 54. Be8 {[%emt 0:00:02]} Bf1 {[%emt 0:00:03]} 55. Kf2 {[%emt 0:00:09]} Bd3 {[%emt 0:00:03]} 56. Kf3 {[%emt 0:00:02]} Bc4 {[%emt 0:00:21]} 57. Bd7 {[%emt 0:00:03]} Bd3 {[%emt 0:00:24]} 58. Be8 {[%emt 0:00:02]} 1/2-1/2

[Event "European Online Club-ch-E 2021"]
[Site "Online"]
[Date "2021.03.27"]
[Round "6.15"]
[White "Gozzoli, Yannick"]
[Black "Cederstam Barsk, Carl"]
[Result "1/2-1/2"]
[ECO "A15"]
[WhiteElo "2600"]
[BlackElo "2366"]
[Annotator "ChessBase"]
[PlyCount "114"]
[EventDate "2021.03.27"]
[EventType "team-tourn"]
[EventCountry "NET"]
[SourceTitle "playchess.com"]
[Source "ChessBase"]
[SourceQuality "1"]
[TimeControl "900+5"]

1. d4 {[%emt 0:00:00]} Nf6 {[%emt 0:00:10]} 2. c4 {[%emt 0:00:03]} e6 {[%emt 0:00:02]} 3. Nf3 {[%emt 0:00:02]} d5 {[%emt 0:00:06]} 4. g3 {[%emt 0:00:12]} g6 {[%emt 0:01:18]} 5. Bg2 {[%emt 0:00:06]} Bg7 {[%emt 0:00:02]} 6. O-O {[%emt 0:00:02]} O-O {[%emt 0:00:02]} 7. cxd5 {[%emt 0:00:21]} exd5 {[%emt 0:00:21]} 8. Nc3 {[%emt 0:00:06]} b6 {[%emt 0:01:43]} 9. Ne5 {[%emt 0:00:25]} Be6 {[%emt 0:00:22]} 10. Bf4 {[%emt 0:01:42]} Nh5 {[%emt 0:02:30]} 11. e3 {[%emt 0:00:55]} Nxf4 {[%emt 0:00:35]} 12. exf4 {[%emt 0:00:09]} c6 {[%emt 0:00:17]} 13. b4 {[%emt 0:00:23]} a6 {[%emt 0:00:42]} 14. a4 {[%emt 0:00:04]} Qd6 {[%emt 0:02:12]} 15. b5 {[%emt 0:00:21]} axb5 {[%emt 0:00:33]} 16. axb5 {[%emt 0:00:00]} Rxa1 {[%emt 0:00:02]} 17. Qxa1 {[%emt 0:00:00]} c5 {[%emt 0:00:01]} 18. Rd1 {[%emt 0:02:16]} Nd7 {[%emt 0:02:16]} 19. Qa3 {[%emt 0:03:16]} Rc8 {[%emt 0:00:50]} 20. Nc6 {[%emt 0:00:14]} Bf8 {[%emt 0:00:23]} 21. f5 {[%emt 0:01:45]} Bxf5 {[%emt 0:00:31]} 22. Nxd5 {[%emt 0:00:09]} Bg4 {[%emt 0:00:40]} 23. Re1 {[%emt 0:00:16]} Be6 {[%emt 0:00:10]} 24. dxc5 {[%emt 0:01:05]} Nxc5 {[%emt 0:00:23]} 25. Nxb6 {[%emt 0:00:09]} Qd2 {[%emt 0:00:16]} 26. Qe3 {[%emt 0:00:06]} Qxe3 {[%emt 0:00:22]} 27. Rxe3 {[%emt 0:00:00]} Rc7 {[%emt 0:00:03]} 28. Nd5 {[%emt 0:00:16]} Rb7 {[%emt 0:00:11]} 29. b6 {[%emt 0:01:05]} Bxd5 {[%emt 0:00:02]} 30. Bxd5 {[%emt 0:00:02]} Rxb6 {[%emt 0:00:01]} 31. Ne5 {[%emt 0:00:10]} Ne6 {[%emt 0:00:12]} 32. Nd7 {[%emt 0:00:19]} Rd6 {[%emt 0:00:02]} 33. Nf6+ {[%emt 0:00:03]} Kh8 {[%emt 0:00:05]} 34. Bb3 {[%emt 0:00:09]} Be7 {[%emt 0:00:11]} 35. Ne8 {[%emt 0:00:15]} Rd8 {[%emt 0:00:08]} 36. Bxe6 {[%emt 0:00:04]} fxe6 {[%emt 0:00:10]} 37. Nc7 {[%emt 0:00:01]} Bc5 {[%emt 0:00:06]} 38. Re2 {[%emt 0:00:04]} Rd6 {[%emt 0:00:04]} 39. Nxe6 {[%emt 0:00:01]} Bb6 {[%emt 0:00:01]} 40. Kg2 {[%emt 0:00:03]} Kg8 {[%emt 0:00:02]} 41. f4 {[%emt 0:00:03]} h6 {[%emt 0:00:01]} 42. f5 {[%emt 0:00:27]} gxf5 {[%emt 0:00:02]} 43. Nf4 {[%emt 0:00:01]} Kf7 {[%emt 0:00:04]} 44. Kh3 {[%emt 0:00:01]} Kf6 {[%emt 0:00:05]} 45. Kh4 {[%emt 0:00:03]} Bd4 {[%emt 0:00:11]} 46. Kh5 {[%emt 0:00:06]} Be5 {[%emt 0:00:06]} 47. Ng6 {[%emt 0:00:03]} Bc3 {[%emt 0:00:02]} 48. Nh4 {[%emt 0:00:23]} Rd2 {[%emt 0:00:08]} 49. Rxd2 {[%emt 0:00:06]} Bxd2 {[%emt 0:00:01]} 50. Ng2 {[%emt 0:00:05]} Kf7 {[%emt 0:00:06]} 51. h3 {[%emt 0:00:08]} Kf6 {[%emt 0:00:03]} 52. Nh4 {[%emt 0:00:05]} Bc1 {[%emt 0:00:05]} 53. Nf3 {[%emt 0:00:02]} Be3 {[%emt 0:00:02]} 54. Nh4 {[%emt 0:00:07]} Bf2 {[%emt 0:00:08]} 55. Nxf5 {[%emt 0:00:17]} Kxf5 {[%emt 0:00:01]} 56. Kxh6 {[%emt 0:00:05]} Bxg3 {[%emt 0:00:02]} 57. h4 {[%emt 0:00:01]} Bxh4 {[%emt 0:00:01]} 1/2-1/2

[Event "European Online Club-ch-E 2021"]
[Site "Online"]
[Date "2021.03.27"]
[Round "6.17"]
[White "Mikhalevski, Victor"]
[Black "Chatalbashev, Boris"]
[Result "1-0"]
[ECO "D78"]
[WhiteElo "2552"]
[BlackElo "2530"]
[Annotator "ChessBase"]
[PlyCount "129"]
[EventDate "2021.03.27"]
[EventType "team-tourn"]
[EventCountry "NET"]
[SourceTitle "playchess.com"]
[Source "ChessBase"]
[SourceQuality "1"]
[TimeControl "900+5"]

1. d4 {[%emt 0:00:00]} Nf6 {[%emt 0:00:02]} 2. Nf3 {[%emt 0:00:03]} g6 {[%emt 0:00:05]} 3. g3 {[%emt 0:00:04]} Bg7 {[%emt 0:00:02]} 4. Bg2 {[%emt 0:00:03]} d5 {[%emt 0:00:02]} 5. O-O {[%emt 0:00:10]} O-O {[%emt 0:00:02]} 6. c4 {[%emt 0:00:03]} c6 {[%emt 0:00:02]} 7. Qb3 {[%emt 0:00:09]} a5 {[%emt 0:00:02]} 8. cxd5 {[%emt 0:00:04]} a4 {[%emt 0:00:03]} 9. Qd1 {[%emt 0:00:03]} cxd5 {[%emt 0:00:05]} 10. Nc3 {[%emt 0:00:02]} Qa5 {[%emt 0:00:13]} 11. Ne5 {[%emt 0:01:05]} Nc6 {[%emt 0:00:22]} 12. Bd2 {[%emt 0:00:48]} Nxd4 {[%emt 0:01:33]} 13. e3 {[%emt 0:00:15]} Nc6 {[%emt 0:01:13]} 14. Nxd5 {[%emt 0:00:10]} Qd8 {[%emt 0:00:02]} 15. Nxc6 {[%emt 0:00:22]} bxc6 {[%emt 0:00:04]} 16. Nb4 {[%emt 0:00:42]} Bg4 {[%emt 0:01:03]} 17. Nxc6 {[%emt 0:00:11]} Qd6 {[%emt 0:02:48]} 18. Qe1 {[%emt 0:01:06]} Rae8 {[%emt 0:00:47]} 19. Bb4 {[%emt 0:00:17]} Qe6 {[%emt 0:00:21]} 20. Nd4 {[%emt 0:03:39]} Qc4 {[%emt 0:00:02]} 21. b3 {[%emt 0:00:34]} Qa6 {[%emt 0:00:44]} 22. Rc1 {[%emt 0:00:27]} axb3 {[%emt 0:00:17]} 23. axb3 {[%emt 0:00:02]} e5 {[%emt 0:01:12]} 24. Nc6 {[%emt 0:01:03]} e4 {[%emt 0:00:30]} 25. Qd2 {[%emt 0:00:39]} Be2 {[%emt 0:00:48]} 26. Rfe1 {[%emt 0:00:33]} Bd3 {[%emt 0:00:04]} 27. Bxf8 {[%emt 0:00:15]} Bxf8 {[%emt 0:00:10]} 28. Bf1 {[%emt 0:00:24]} Rc8 {[%emt 0:01:31]} 29. Nd4 {[%emt 0:00:10]} Rb8 {[%emt 0:00:12]} 30. Bxd3 {[%emt 0:00:12]} exd3 {[%emt 0:00:40]} 31. Red1 {[%emt 0:00:20]} Ng4 {[%emt 0:00:39]} 32. Qxd3 {[%emt 0:00:07]} Qf6 {[%emt 0:00:05]} 33. Qe2 {[%emt 0:00:13]} h5 {[%emt 0:00:04]} 34. Rc6 {[%emt 0:00:16]} Qe5 {[%emt 0:00:05]} 35. Rdc1 {[%emt 0:00:15]} Kg7 {[%emt 0:00:13]} 36. h3 {[%emt 0:00:47]} Nf6 {[%emt 0:00:11]} 37. Qf3 {[%emt 0:00:05]} h4 {[%emt 0:00:13]} 38. Qf4 {[%emt 0:00:06]} Re8 {[%emt 0:00:13]} 39. Qxe5 {[%emt 0:00:09]} Rxe5 {[%emt 0:00:03]} 40. g4 {[%emt 0:00:06]} Nd5 {[%emt 0:00:04]} 41. Ra1 {[%emt 0:00:36]} Nb4 {[%emt 0:00:05]} 42. Rc4 {[%emt 0:00:15]} Nd3 {[%emt 0:00:06]} 43. Rc3 {[%emt 0:00:12]} Nc5 {[%emt 0:00:10]} 44. Ra7 {[%emt 0:00:06]} Ne4 {[%emt 0:00:26]} 45. Rc6 {[%emt 0:00:13]} Bc5 {[%emt 0:00:13]} 46. Rd7 {[%emt 0:00:27]} Ng5 {[%emt 0:00:14]} 47. Kg2 {[%emt 0:00:06]} Bxd4 {[%emt 0:00:14]} 48. Rxd4 {[%emt 0:00:03]} Rb5 {[%emt 0:00:03]} 49. b4 {[%emt 0:00:04]} Ne6 {[%emt 0:00:01]} 50. Re4 {[%emt 0:00:06]} Kf6 {[%emt 0:00:02]} 51. Rc8 {[%emt 0:00:11]} g5 {[%emt 0:00:01]} 52. Ra8 {[%emt 0:00:05]} Rb6 {[%emt 0:00:05]} 53. Ra5 {[%emt 0:00:03]} Kg6 {[%emt 0:00:04]} 54. Rd5 {[%emt 0:00:08]} Kf6 {[%emt 0:00:03]} 55. b5 {[%emt 0:00:03]} Rb7 {[%emt 0:00:09]} 56. Rc4 {[%emt 0:00:06]} Ke7 {[%emt 0:00:02]} 57. Rc6 {[%emt 0:00:04]} Rb8 {[%emt 0:00:07]} 58. b6 {[%emt 0:00:03]} Nd8 {[%emt 0:00:04]} 59. Rc7+ {[%emt 0:00:09]} Ke6 {[%emt 0:00:02]} 60. Rxg5 {[%emt 0:00:05]} Rxb6 {[%emt 0:00:04]} 61. Rh5 {[%emt 0:00:03]} Kd6 {[%emt 0:00:07]} 62. Ra7 {[%emt 0:00:03]} f6 {[%emt 0:00:08]} 63. Rxh4 {[%emt 0:00:05]} Ne6 {[%emt 0:00:04]} 64. Rh6 {[%emt 0:00:03]} Ke5 {[%emt 0:00:08]} 65. Ra5+ {[%emt 0:00:02]} 1-0

[Event "European Online Club-ch-E 2021"]
[Site "Online"]
[Date "2021.03.27"]
[Round "6.18"]
[White "Moreno Trujillo, Alejandro"]
[Black "Postny, Evgeny"]
[Result "1-0"]
[ECO "D02"]
[WhiteElo "2483"]
[BlackElo "2605"]
[Annotator "ChessBase"]
[PlyCount "191"]
[EventDate "2021.03.27"]
[EventType "team-tourn"]
[EventCountry "NET"]
[SourceTitle "playchess.com"]
[Source "ChessBase"]
[SourceQuality "1"]
[TimeControl "900+5"]

1. d4 {[%emt 0:00:00]} d5 {[%emt 0:00:04]} 2. Bf4 {[%emt 0:00:05]} Nf6 {[%emt 0:00:07]} 3. e3 {[%emt 0:00:03]} Bg4 {[%emt 0:00:03]} 4. Nf3 {[%emt 0:00:19]} e6 {[%emt 0:00:07]} 5. Nbd2 {[%emt 0:00:08]} Nbd7 {[%emt 0:00:27]} 6. h3 {[%emt 0:00:06]} Bh5 {[%emt 0:00:05]} 7. Bd3 {[%emt 0:00:09]} Be7 {[%emt 0:00:32]} 8. Qe2 {[%emt 0:00:33]} c5 {[%emt 0:00:22]} 9. c3 {[%emt 0:00:05]} O-O {[%emt 0:00:26]} 10. g4 {[%emt 0:00:52]} Bg6 {[%emt 0:00:04]} 11. Bxg6 {[%emt 0:00:03]} hxg6 {[%emt 0:00:04]} 12. Ne5 {[%emt 0:00:03]} Nxe5 {[%emt 0:00:15]} 13. dxe5 {[%emt 0:00:16]} Nd7 {[%emt 0:00:24]} 14. Nf3 {[%emt 0:00:37]} c4 {[%emt 0:01:51]} 15. h4 {[%emt 0:01:07]} Nc5 {[%emt 0:00:05]} 16. Kf1 {[%emt 0:00:03]} Nd3 {[%emt 0:00:40]} 17. Bg3 {[%emt 0:00:13]} Qb6 {[%emt 0:00:24]} 18. Rb1 {[%emt 0:00:06]} Rfc8 {[%emt 0:03:03]} 19. Kg2 {[%emt 0:00:26]} Kf8 {[%emt 0:00:16]} 20. Nd4 {[%emt 0:00:30]} Bc5 {[%emt 0:00:59]} 21. h5 {[%emt 0:00:22]} gxh5 {[%emt 0:01:36]} 22. Rxh5 {[%emt 0:00:22]} Ke7 {[%emt 0:00:04]} 23. Qf3 {[%emt 0:02:22]} Rg8 {[%emt 0:00:14]} 24. Qe2 {[%emt 0:01:58]} Raf8 {[%emt 0:00:48]} 25. b3 {[%emt 0:00:16]} Bxd4 {[%emt 0:00:40]} 26. exd4 {[%emt 0:00:13]} Kd7 {[%emt 0:00:21]} 27. Rhh1 {[%emt 0:00:39]} Qc6 {[%emt 0:00:10]} 28. Qf3 {[%emt 0:00:25]} b6 {[%emt 0:00:35]} 29. a4 {[%emt 0:00:04]} f6 {[%emt 0:00:08]} 30. Rh7 {[%emt 0:01:14]} f5 {[%emt 0:01:17]} 31. gxf5 {[%emt 0:01:28]} Rxf5 {[%emt 0:00:07]} 32. Qg4 {[%emt 0:00:06]} Kc8 {[%emt 0:00:28]} 33. a5 {[%emt 0:01:47]} Qb7 {[%emt 0:00:30]} 34. axb6 {[%emt 0:00:06]} axb6 {[%emt 0:00:02]} 35. b4 {[%emt 0:00:06]} Qf7 {[%emt 0:00:10]} 36. f3 {[%emt 0:00:25]} Kb7 {[%emt 0:00:05]} 37. Ra1 {[%emt 0:00:03]} Kc6 {[%emt 0:00:10]} 38. Ra2 {[%emt 0:00:14]} Nf4+ {[%emt 0:00:08]} 39. Bxf4 {[%emt 0:00:03]} Rxf4 {[%emt 0:00:01]} 40. Qg3 {[%emt 0:00:01]} Rf5 {[%emt 0:00:10]} 41. Rh1 {[%emt 0:00:05]} Rf8 {[%emt 0:00:12]} 42. Rf1 {[%emt 0:00:06]} Qh5 {[%emt 0:00:05]} 43. f4 {[%emt 0:00:14]} Kb5 {[%emt 0:00:04]} 44. Raf2 {[%emt 0:00:04]} g5 {[%emt 0:00:09]} 45. fxg5 {[%emt 0:00:04]} Rxg5 {[%emt 0:00:02]} 46. Rxf8 {[%emt 0:00:02]} Rxg3+ {[%emt 0:00:02]} 47. Kxg3 {[%emt 0:00:01]} Qg5+ {[%emt 0:00:02]} 48. Kh3 {[%emt 0:00:01]} Qh6+ {[%emt 0:00:05]} 49. Kg3 {[%emt 0:00:02]} Qg6+ {[%emt 0:00:05]} 50. Kh3 {[%emt 0:00:01]} Ka4 {[%emt 0:00:03]} 51. R1f3 {[%emt 0:00:03]} Qh6+ {[%emt 0:00:04]} 52. Kg3 {[%emt 0:00:02]} Qg5+ {[%emt 0:00:01]} 53. Kh3 {[%emt 0:00:02]} Qh5+ {[%emt 0:00:05]} 54. Kg2 {[%emt 0:00:02]} Qg4+ {[%emt 0:00:03]} 55. Rg3 {[%emt 0:00:05]} Qe4+ {[%emt 0:00:03]} 56. Rff3 {[%emt 0:00:03]} Kb3 {[%emt 0:00:04]} 57. Kh3 {[%emt 0:00:03]} Qh7+ {[%emt 0:00:06]} 58. Kg2 {[%emt 0:00:03]} Qe4 {[%emt 0:00:03]} 59. Kh2 {[%emt 0:00:04]} Qe2+ {[%emt 0:00:05]} 60. Kh3 {[%emt 0:00:04]} Qe4 {[%emt 0:00:03]} 61. Rf6 {[%emt 0:00:04]} Qh1+ {[%emt 0:00:13]} 62. Kg4 {[%emt 0:00:02]} Qe4+ {[%emt 0:00:04]} 63. Kg5 {[%emt 0:00:14]} Qe1 {[%emt 0:00:03]} 64. Rgf3 {[%emt 0:00:03]} Qg1+ {[%emt 0:00:11]} 65. Kh6 {[%emt 0:00:02]} Qg4 {[%emt 0:00:03]} 66. R6f4 {[%emt 0:00:13]} Qg1 {[%emt 0:00:09]} 67. Kh5 {[%emt 0:00:13]} Qg2 {[%emt 0:00:03]} 68. Rf6 {[%emt 0:00:07]} b5 {[%emt 0:00:06]} 69. Kh4 {[%emt 0:00:07]} Qg8 {[%emt 0:00:09]} 70. Rg3 {[%emt 0:00:21]} Qh7+ {[%emt 0:00:02]} 71. Kg4 {[%emt 0:00:02]} Qe4+ {[%emt 0:00:03]} 72. Kh3 {[%emt 0:00:02]} Qh1+ {[%emt 0:00:04]} 73. Kg4 {[%emt 0:00:02]} Qe4+ {[%emt 0:00:02]} 74. Kg5 {[%emt 0:00:04]} Qe1 {[%emt 0:00:06]} 75. Rff3 {[%emt 0:00:04]} Qh1 {[%emt 0:00:11]} 76. Kf6 {[%emt 0:00:03]} Qh6+ {[%emt 0:00:02]} 77. Ke7 {[%emt 0:00:01]} Kc2 {[%emt 0:00:05]} 78. Kd6 {[%emt 0:00:03]} Kb3 {[%emt 0:00:04]} 79. Rf6 {[%emt 0:00:04]} Qh4 {[%emt 0:00:09]} 80. Rfg6 {[%emt 0:00:07]} Qd8+ {[%emt 0:00:12]} 81. Kxe6 {[%emt 0:00:03]} Kc2 {[%emt 0:00:01]} 82. Kf5 {[%emt 0:00:06]} Qf8+ {[%emt 0:00:04]} 83. Rf6 {[%emt 0:00:05]} Qh8 {[%emt 0:00:02]} 84. Rfg6 {[%emt 0:00:07]} Qf8+ {[%emt 0:00:07]} 85. Ke6 {[%emt 0:00:03]} Qa8 {[%emt 0:00:07]} 86. Rg8 {[%emt 0:00:09]} Qc6+ {[%emt 0:00:04]} 87. Kf5 {[%emt 0:00:02]} Qh6 {[%emt 0:00:06]} 88. e6 {[%emt 0:00:03]} Qh5+ {[%emt 0:00:02]} 89. Kf6 {[%emt 0:00:02]} Qh4+ {[%emt 0:00:04]} 90. Ke5 {[%emt 0:00:02]} Qh5+ {[%emt 0:00:01]} 91. Kd6 {[%emt 0:00:03]} Qh6 {[%emt 0:00:04]} 92. Kd7 {[%emt 0:00:05]} Qh7+ {[%emt 0:00:07]} 93. e7 {[%emt 0:00:07]} Qf5+ {[%emt 0:00:02]} 94. Kd8 {[%emt 0:00:03]} Qf6 {[%emt 0:00:01]} 95. R8g6 {[%emt 0:00:04]} Qh4 {[%emt 0:00:03]} 96. R3g4 {[%emt 0:00:03]} 1-0

[Event "European Online Club-ch-E 2021"]
[Site "Online"]
[Date "2021.03.27"]
[Round "6.20"]
[White "Garrido Dominguez, Jesus"]
[Black "Huzman, Alexander"]
[Result "0-1"]
[ECO "C07"]
[WhiteElo "2413"]
[BlackElo "2561"]
[Annotator "ChessBase"]
[PlyCount "48"]
[EventDate "2021.03.27"]
[EventType "team-tourn"]
[EventCountry "NET"]
[SourceTitle "playchess.com"]
[Source "ChessBase"]
[SourceQuality "1"]
[TimeControl "900+5"]

1. e4 {[%emt 0:00:00]} e6 {[%emt 0:00:04]} 2. d4 {[%emt 0:00:05]} d5 {[%emt 0:00:03]} 3. Nd2 {[%emt 0:00:03]} c5 {[%emt 0:00:03]} 4. exd5 {[%emt 0:00:11]} Qxd5 {[%emt 0:00:07]} 5. Ngf3 {[%emt 0:00:02]} cxd4 {[%emt 0:00:04]} 6. Bc4 {[%emt 0:00:03]} Qd6 {[%emt 0:00:03]} 7. O-O {[%emt 0:00:05]} Nf6 {[%emt 0:00:06]} 8. Nb3 {[%emt 0:00:04]} Nc6 {[%emt 0:00:03]} 9. Nbxd4 {[%emt 0:00:02]} Nxd4 {[%emt 0:00:03]} 10. Qxd4 {[%emt 0:00:02]} Qxd4 {[%emt 0:00:04]} 11. Nxd4 {[%emt 0:00:02]} Bd7 {[%emt 0:00:02]} 12. Re1 {[%emt 0:00:26]} Rc8 {[%emt 0:00:26]} 13. Bb3 {[%emt 0:00:12]} Bc5 {[%emt 0:01:08]} 14. c3 {[%emt 0:00:51]} Bxd4 {[%emt 0:01:14]} 15. cxd4 {[%emt 0:00:06]} Bc6 {[%emt 0:00:01]} 16. Bf4 {[%emt 0:00:04]} Nd5 {[%emt 0:00:12]} 17. Bd6 {[%emt 0:00:09]} Kd7 {[%emt 0:00:03]} 18. Be5 {[%emt 0:00:20]} f6 {[%emt 0:00:15]} 19. Bg3 {[%emt 0:00:03]} Rhe8 {[%emt 0:00:38]} 20. a3 {[%emt 0:00:10]} Nb6 {[%emt 0:00:10]} 21. Rac1 {[%emt 0:01:03]} Bd5 {[%emt 0:00:03]} 22. Bc2 {[%emt 0:00:04]} h6 {[%emt 0:01:37]} 23. Bg6 {[%emt 0:00:12]} Rf8 {[%emt 0:00:06]} 24. Rc4 {[%emt 0:00:57]} Nxc4 {[%emt 0:00:04]} 0-1